bitfinex/quotes_ETHUSD_20260129
["timestamp","ask_amount","ask_price","bid_price","bid_amount"]
[1769645794717,2.75409461,3004.5,3003.8,0.8322747]
[1769645794917,2.75409461,3004.5,3003.9,0.697]
[1769645795104,2.75409461,3004.5,3003.7,0.002]
[1769645795311,2.75409461,3004.5,3003.8,0.697]
[1769645795506,2.75409461,3004.4,3003.8,0.697]
[1769645797308,3.58621188,3004.4,3003.8,0.697]
[1769645797526,2.75409461,3004.3,3003.8,0.697]
[1769645800441,2.75409461,3004.3,3003.7,0.002]
[1769645800641,3.58623838,3004.3,3003.7,0.002]
[1769645800941,2.75409461,3004.2,3003.7,0.002]
[1769645801441,2.75409461,3004.2,3003.8,0.83227614]
[1769645801751,2.75409461,3004.5,3003.8,0.83227614]
[1769645802853,3.58614093,3004.7,3003.8,0.83227614]
[1769645803057,2.75409461,3004.6,3003.8,0.83227614]
[1769645803859,2.75409461,3004.6,3003.7,0.41837558]
[1769645803860,2.75409461,3004.4,3003.7,0.41837558]
[1769645804147,2.75409461,3004.4,3003.7,0.002]
[1769645805016,2.75409461,3004.4,3003.4,0.8343885]
[1769645805746,2.75409461,3004.2,3003.4,0.8343885]
[1769645806429,2.75409461,3004.4,3003.4,1.25971304]
[1769645806624,2.75409461,3004.4,3003.5,0.52863814]
[1769645806829,2.75409461,3004.4,3003.5,0.95396268]
[1769645807818,2.75409461,3004.4,3003.6,0.83233453]
[1769645808152,2.75409461,3004.6,3003.6,1.2565491]
[1769645808451,2.75409461,3004.6,3003.7,0.42421457]
[1769645809452,0.001,3004.8,3003.7,0.42421457]
[1769645809953,2.75509461,3004.8,3003.8,0.83227911]
[1769645810129,2.75509461,3004.8,3003.9,0.45856101]
[1769645811055,2.75509461,3004.8,3004.0,0.002]
[1769645811428,0.001,3004.5,3004.0,0.002]
[1769645811951,0.001,3004.5,3004.1,0.697]
[1769645812156,0.001,3004.5,3004.2,0.83216829]
[1769645812646,0.001,3004.5,3004.2,1.31817083]
[1769645812846,0.001,3004.8,3004.2,1.31817083]
[1769645813242,2.75509461,3004.8,3004.2,1.31817083]
[1769645814258,2.75509461,3004.8,3004.2,0.48600254]
[1769645814457,2.75509461,3004.8,3004.1,0.83217469]
[1769645814458,2.75409461,3004.7,3004.1,0.83217469]
[1769645814674,2.75409461,3004.7,3004.0,1.53121896]
[1769645814962,2.75409461,3004.7,3004.1,4.0]
[1769645815167,2.75409461,3004.7,3004.0,1.53121896]
[1769645816355,2.75409461,3004.7,3004.0,0.699]
[1769645817462,2.58568923,3004.6,3004.0,0.699]
[1769645817763,2.58568923,3004.6,3004.0,0.002]
[1769645818365,2.58568923,3004.6,3004.0,0.8342237]
[1769645820258,2.58568923,3004.6,3004.0,0.002]
[1769645822347,2.58568923,3004.6,3004.0,0.48803201]
[1769645822867,2.58668923,3004.8,3004.1,0.83219599]
[1769645823563,0.001,3004.5,3004.1,0.83219599]
[1769645825379,0.001,3004.5,3004.2,0.697]
[1769645826637,2.58668923,3004.5,3004.0,1.32024191]
[1769645826841,2.58668923,3004.5,3004.1,0.697]
[1769645828170,2.58668923,3004.5,3004.0,0.699]
[1769645828737,2.58568923,3004.4,3004.0,0.699]
[1769645829369,2.58568923,3004.4,3004.0,1.53122032]
[1769645829670,2.58568923,3004.4,3004.0,0.83422032]
[1769645829877,2.58568923,3004.4,3004.0,1.53122032]
[1769645830540,2.58568923,3004.4,3004.0,0.699]
[1769645831172,2.58568923,3004.4,3004.0,1.53122272]
[1769645831759,2.58568923,3004.4,3004.0,0.002]
[1769645832403,2.58568923,3004.4,3004.0,0.83422022]
[1769645833193,2.58568923,3004.4,3004.0,0.002]
[1769645834966,2.58568923,3004.4,3004.3,0.002]
[1769645835165,2.92756585,3004.4,3004.3,0.002]
[1769645837083,0.001,3004.5,3004.3,0.002]
[1769645837397,2.58668923,3004.5,3004.3,0.002]
[1769645842597,0.001,3004.5,3004.3,0.002]
[1769645844186,2.58668923,3004.5,3004.3,0.002]
[1769645846601,2.58668923,3004.5,3004.0,0.002]
[1769645846894,2.92856392,3004.5,3004.0,0.002]
[1769645847472,2.92856392,3004.5,3003.7,0.83228688]
[1769645847473,2.58568923,3004.4,3003.7,0.83228688]
[1769645847812,2.58568923,3004.4,3003.6,1.53130989]
[1769645847971,2.58568923,3004.4,3003.6,0.002]
[1769645848486,2.68205583,3004.3,3003.6,0.8343308]
[1769645848793,2.68205583,3004.1,3003.6,0.8343308]
[1769645849201,2.68205583,3004.1,3003.6,0.002]
[1769645854782,3.5142522,3004.1,3003.6,0.002]
[1769645855101,2.68205583,3004.0,3003.6,0.002]
[1769645856304,2.68205583,3003.9,3003.6,0.002]
[1769645856492,2.68205583,3003.7,3003.4,0.002]
[1769645858396,2.68205583,3003.7,3003.5,0.002]
[1769645859099,2.68205583,3003.6,3003.5,0.002]
[1769645865750,2.68205583,3003.6,3002.9,0.83251086]
[1769645867643,2.68205583,3003.5,3002.9,0.83251086]
[1769645868944,2.68205583,3003.5,3002.8,1.52953739]
[1769645869411,2.68205583,3003.5,3002.8,2.49498461]
[1769645869614,2.68205583,3003.4,3002.7,0.83457047]
[1769645869812,2.68205583,3003.4,3002.7,0.83456273]
[1769645870349,2.68205583,3003.4,3003.2,0.002]
[1769645871522,2.68205583,3003.2,3002.7,0.002]
[1769645871722,2.68205583,3003.0,3002.7,0.002]
[1769645872627,2.68205583,3003.0,3002.4,0.002]
[1769645873813,2.68205583,3002.8,3002.4,0.002]
[1769645876525,2.64499599,3002.7,3002.4,0.002]
[1769645876729,2.64499599,3002.7,3001.9,0.002]
[1769645876944,2.64499599,3002.5,3001.9,0.83480484]
[1769645877146,2.64499599,3002.5,3001.9,0.002]
[1769645879058,2.64499599,3002.4,3001.9,0.002]
[1769645880956,2.64499599,3002.3,3001.9,0.002]
[1769645882544,2.64499599,3002.3,3002.2,0.002]
[1769645882831,3.82545743,3002.3,3002.2,0.002]
[1769645883440,2.9927625,3002.3,3002.2,0.002]
[1769645884069,2.64499599,3002.8,3002.2,0.002]
[1769645884361,2.64499599,3003.1,3002.3,0.37990449]
[1769645884530,2.64599599,3003.2,3002.3,0.37990449]
[1769645884930,0.001,3003.2,3002.3,0.37990449]
[1769645885168,0.001,3003.2,3002.5,0.37990449]
[1769645885536,0.001,3003.2,3002.5,0.698]
[1769645886032,0.001,3003.2,3002.5,1.53061923]
[1769645888291,0.001,3003.2,3002.6,0.37868747]
[1769645888869,0.001,3003.2,3002.5,1.53061923]
[1769645889072,0.001,3003.2,3002.5,2.10632054]
[1769645889239,0.001,3003.2,3002.5,2.48461043]
[1769645889870,0.001,3003.2,3002.6,0.3779018]
[1769645890069,3.47830207,3003.8,3002.8,0.3769018]
[1769645890367,4.15900095,3003.8,3002.9,0.3769018]
[1769645890945,3.32671925,3003.8,3002.9,0.3769018]
[1769645891146,1.51400541,3003.8,3002.9,0.3769018]
[1769645891434,1.51400541,3003.8,3002.3,0.83269294]
[1769645891435,2.64499599,3002.9,3002.3,0.83269294]
[1769645891658,2.64499599,3002.9,3002.4,0.83266458]
[1769645891856,2.64499599,3003.5,3002.6,0.83260913]
[1769645892070,2.64499599,3003.5,3002.5,0.83261901]
[1769645892280,2.64499599,3003.3,3002.4,3.33065478]
[1769645892575,2.64499599,3003.3,3002.4,0.83266719]
[1769645894163,3.47744138,3003.2,3002.3,0.83269493]
[1769645894465,2.64499599,3003.1,3002.2,0.83471564]
[1769645894776,2.99274013,3003.0,3002.2,0.83471564]
[1769645895794,2.64499599,3003.0,3002.2,0.83471564]
[1769645896445,2.64499599,3003.0,3002.2,1.53271564]
[1769645897272,2.64599599,3003.2,3002.2,1.9071608]
[1769645897877,2.64499599,3003.1,3002.2,1.9071608]
[1769645898074,2.64499599,3003.1,3002.3,0.5238053]
[1769645898959,0.001,3003.2,3002.4,1.20642041]
[1769645899901,3.47844254,3003.2,3002.4,1.20642041]
[1769645900196,2.64499599,3003.1,3002.3,0.83267682]
[1769645901518,2.64499599,3003.0,3002.3,0.83267682]
[1769645901998,2.64499599,3003.0,3002.2,0.7]
[1769645902189,2.64499599,3003.0,3002.2,1.53272137]
[1769645902794,2.64499599,3003.0,3002.2,0.7]
[1769645902984,2.64499599,3002.7,3002.2,0.7]
[1769645903506,2.64499599,3002.7,3002.2,1.53271729]
[1769645903869,0.82745435,3002.9,3002.2,1.53271729]
[1769645903870,3.47245034,3002.9,3002.2,1.53271729]
[1769645904071,2.64499599,3002.9,3002.2,1.53271729]
[1769645905370,2.72971419,3002.8,3002.2,1.53271729]
[1769645906201,2.72971419,3002.8,3002.2,0.7]
[1769645907189,2.72971419,3002.8,3002.2,1.53272155]
[1769645910608,2.64220787,3003.1,3002.3,0.37157306]
[1769645910775,0.001,3003.2,3002.4,0.56200252]
[1769645911677,0.001,3003.2,3002.5,0.83263946]
[1769645912913,2.64320787,3003.2,3002.4,1.02307648]
[1769645914710,2.64220787,3003.1,3002.4,1.02307648]
[1769645915822,2.64220787,3003.1,3002.4,0.83264702]
[1769645916181,2.64220787,3003.1,3002.2,0.7]
[1769645916485,2.64220787,3003.0,3002.3,0.83267556]
[1769645917615,0.001,3003.2,3002.3,0.83267556]
[1769645917819,0.001,3003.2,3002.4,0.36975981]
[1769645918480,0.001,3003.2,3002.5,0.83263946]
[1769645918680,0.001,3003.2,3002.5,1.28593517]
[1769645918913,0.001,3003.2,3002.7,0.002]
[1769645922318,2.64220787,3003.1,3002.4,0.002]
[1769645922612,2.64220787,3002.7,3002.4,0.002]
[1769645927205,2.64220787,3002.6,3002.4,0.002]
[1769645927408,2.90642866,3002.5,3002.4,0.002]
[1769645928416,2.90642866,3002.5,3002.1,0.002]
[1769645931724,2.90642866,3002.5,3002.4,0.002]
[1769645933122,2.90642866,3002.5,3002.1,0.002]
[1769645937309,2.64220787,3002.5,3002.1,0.002]
[1769645938333,2.57618923,3002.7,3002.1,0.002]
[1769645940748,2.57618923,3002.6,3002.1,0.002]
[1769645944355,2.57618923,3002.5,3002.1,0.002]
[1769645944557,2.57618923,3002.3,3002.1,0.002]
[1769645946665,0.001,3002.2,3002.1,0.002]
[1769645947565,2.57718923,3002.2,3002.1,0.002]
[1769645947762,2.57718923,3002.2,3001.7,0.698]
[1769645947973,2.57718923,3002.2,3001.7,1.53085902]
[1769645948174,0.001,3002.2,3001.7,1.53085902]
[1769645950046,0.001,3002.2,3001.7,0.698]
[1769645950249,2.9511629,3002.2,3001.7,0.698]
[1769645951392,2.9511629,3002.2,3001.7,1.53085644]
[1769645952147,0.001,3002.2,3001.7,1.53085644]
[1769645953390,0.001,3002.2,3001.7,1.89916485]
[1769645954573,0.001,3002.2,3001.7,1.53085644]
[1769645954983,2.57568923,3002.7,3001.8,0.36715512]
[1769645955188,0.001,3002.8,3001.9,0.36715512]
[1769645955505,2.57668923,3002.8,3001.9,0.55695628]
[1769645955955,2.57668923,3002.8,3002.0,0.83277814]
[1769645958503,0.001,3002.5,3002.0,0.83277814]
[1769645958699,0.001,3002.5,3002.1,0.47208508]
[1769645960705,0.001,3002.5,3002.2,0.83272267]
[1769645962011,2.57668923,3002.5,3002.2,0.83272267]
[1769645962214,0.001,3002.5,3002.2,0.83272267]
[1769645963534,0.001,3002.5,3002.1,1.3048351]
[1769645963535,2.57668923,3002.5,3002.1,1.3048351]
[1769645963677,2.57668923,3002.5,3002.1,0.83275002]
[1769645964906,2.57668923,3002.5,3001.9,0.18980116]
[1769645965098,2.57668923,3002.5,3002.0,0.83277814]
[1769645966308,2.57668923,3002.5,3002.1,0.698]
[1769645966504,2.57668923,3002.5,3001.9,0.83278739]
[1769645966707,2.57568923,3002.4,3001.9,0.698]
[1769645968090,2.57568923,3002.4,3001.8,0.83281597]
[1769645968290,2.98539816,3002.3,3001.8,1.53081597]
[1769645968686,2.98539816,3002.3,3001.8,0.698]
[1769645968890,2.98539816,3002.3,3001.8,1.53083362]
[1769645969212,2.98539816,3002.3,3001.8,0.698]
[1769645969412,2.98539816,3002.3,3001.8,1.53082846]
[1769645969718,2.98539816,3002.3,3001.8,1.53083265]
[1769645970025,2.98539816,3002.3,3001.8,0.83283265]
[1769645970591,2.98539816,3002.3,3002.2,0.002]
[1769645972219,0.25766892,3002.3,3002.2,0.002]
[1769645972403,2.72872924,3002.5,3002.2,0.002]
[1769645973691,0.001,3002.5,3002.2,0.002]
[1769645979828,2.72872924,3002.5,3002.2,0.002]
[1769645985632,0.001,3002.5,3002.2,0.002]
[1769645987138,2.72872924,3002.5,3002.2,0.002]
[1769645987334,3.08486081,3002.5,3002.2,0.002]
[1769645994125,2.72772924,3002.4,3002.2,0.002]
[1769645995651,2.75041103,3002.4,3001.9,0.002]
[1769645997949,2.75041103,3002.3,3001.9,0.002]
[1769645998754,3.1075426,3002.5,3001.9,0.002]
[1769646000251,2.75041103,3002.3,3001.9,0.002]
[1769646000829,0.39401586,3002.4,3001.9,0.002]
[1769646001570,2.75141103,3002.5,3001.9,0.002]
[1769646002038,0.001,3002.5,3001.9,0.36340534]
[1769646002626,0.001,3002.8,3002.2,0.36031124]
[1769646002824,2.75141103,3003.2,3002.2,0.36031124]
[1769646003257,0.001,3003.2,3002.2,0.36031124]
[1769646003831,0.001,3003.2,3002.4,0.3592181]
[1769646004142,0.001,3003.2,3002.5,1.53061953]
[1769646004143,2.75141103,3003.2,3002.5,1.53061953]
[1769646004666,2.75041103,3003.1,3002.5,0.698]
[1769646005236,2.75041103,3003.1,3002.2,3.33085792]
[1769646005237,2.75041103,3003.1,3001.6,3.33350947]
[1769646005441,2.75041103,3003.1,3002.3,0.8326933]
[1769646005642,2.75041103,3003.0,3002.4,0.83266461]
[1769646006448,2.75041103,3003.0,3002.0,4.02900163]
[1769646006758,2.75041103,3003.0,3002.0,0.83277642]
[1769646006759,2.75041103,3002.8,3002.0,0.83277642]
[1769646006957,2.75141103,3002.8,3001.9,5.53279027]
[1769646007459,2.75141103,3002.8,3001.9,4.002]
[1769646008244,2.75141103,3002.8,3001.9,0.002]
[1769646008754,2.75041103,3002.6,3001.9,0.002]
[1769646008960,2.75041103,3002.5,3001.9,0.002]
[1769646012068,2.75041103,3002.4,3001.9,0.002]
[1769646013592,2.75041103,3002.3,3001.9,0.002]
[1769646014846,2.75041103,3002.1,3001.6,0.002]
[1769646015052,2.75041103,3001.8,3001.1,0.002]
[1769646015283,2.75041103,3001.8,3001.1,0.83501045]
[1769646015652,2.75041103,3001.8,3001.1,0.002]
[1769646015852,2.75041103,3001.8,3001.1,0.83501095]
[1769646016567,2.75041103,3001.7,3001.1,0.83501095]
[1769646017391,2.75041103,3001.7,3001.1,0.002]
[1769646017563,2.75041103,3001.6,3001.1,0.002]
[1769646018595,2.75041103,3001.6,3001.4,0.002]
[1769646023988,2.75041103,3002.3,3001.4,0.002]
[1769646024160,3.5831337,3002.2,3001.4,0.002]
[1769646024358,3.44181145,3002.1,3001.4,0.002]
[1769646024554,0.69140042,3002.1,3001.4,0.002]
[1769646024760,2.75041103,3002.0,3001.4,0.002]
[1769646026194,3.58320682,3002.0,3001.4,0.002]
[1769646026577,2.75084441,3001.9,3001.4,0.002]
[1769646026782,3.10920843,3001.8,3001.4,0.002]
[1769646028266,2.71268229,3001.7,3001.4,0.002]
[1769646030782,0.001,3001.5,3001.4,0.002]
[1769646032298,2.71268229,3002.2,3001.4,0.002]
[1769646032493,2.71268229,3002.6,3001.4,1.19219958]
[1769646032695,0.832584,3002.7,3001.4,1.19219958]
[1769646032696,3.06720892,3002.5,3001.5,0.35725496]
[1769646032995,3.06720892,3002.5,3001.4,1.76732816]
[1769646033195,3.06720892,3002.5,3001.4,0.83494462]
[1769646034271,3.06720892,3002.5,3001.4,0.002]
[1769646034272,7.8669725,3002.5,3001.4,0.002]
[1769646034484,2.71268229,3002.4,3001.4,0.002]
[1769646034685,2.71268229,3002.1,3001.4,0.002]
[1769646036500,2.71268229,3002.3,3001.4,0.002]
[1769646036803,3.89984959,3002.5,3001.4,0.35906127]
[1769646036970,3.06720892,3002.5,3001.5,0.59917972]
[1769646037383,2.71268229,3002.5,3001.5,0.59917972]
[1769646037584,3.5453221,3002.5,3001.5,0.59917972]
[1769646037790,2.71268229,3002.5,3001.5,0.95618722]
[1769646038817,3.54624001,3002.8,3001.8,0.35695361]
[1769646039508,2.71368229,3002.8,3001.8,0.35695361]
[1769646039667,3.54624013,3002.8,3001.8,0.35695361]
[1769646039863,2.71368229,3002.8,3001.8,0.35695361]
[1769646040089,3.5462469,3002.8,3001.8,0.35695361]
[1769646040291,2.71268229,3002.7,3001.8,0.35695361]
[1769646040688,2.71268229,3002.7,3001.9,0.83280588]
[1769646040898,0.001,3002.8,3002.0,0.698]
[1769646041500,0.001,3002.8,3002.0,1.04947254]
[1769646041670,0.001,3002.8,3002.1,0.18802284]
[1769646042267,0.001,3002.2,3002.1,0.18802284]
[1769646042876,0.001,3002.2,3002.1,1.02077324]
[1769646044377,0.001,3002.8,3002.1,1.02077324]
[1769646044577,0.001,3002.8,3002.1,1.36430029]
[1769646044795,0.001,3002.8,3002.2,0.5393405]
[1769646044996,0.001,3002.8,3002.3,0.83269493]
[1769646045193,3.32943085,3003.6,3002.3,0.83269493]
[1769646045194,2.74795035,3004.4,3002.8,0.05651032]
[1769646045395,2.74845035,3004.7,3003.4,4.79976358]
[1769646045600,3.58048429,3004.7,3003.4,5.27353841]
[1769646045797,2.74845035,3004.7,3003.5,0.87927279]
[1769646046134,2.74845035,3004.2,3003.6,0.56790364]
[1769646046283,2.74845035,3004.2,3002.8,4.0]
[1769646046620,2.74845035,3004.2,3002.9,0.698]
[1769646046802,2.74845035,3004.2,3003.0,4.0]
[1769646047010,2.74845035,3004.2,3003.1,0.83247311]
[1769646047198,2.74845035,3004.0,3003.1,2.05150118]
[1769646049222,2.71845035,3004.0,3003.1,2.05150118]
[1769646050731,2.71845035,3004.0,3003.2,0.698]
[1769646050732,2.73345035,3003.9,3003.2,0.698]
[1769646051140,2.73345035,3003.9,3003.3,0.83241767]
[1769646051502,3.09001653,3003.9,3003.2,1.53042714]
[1769646053205,2.73345035,3003.9,3003.2,1.53042714]
[1769646053670,2.73345035,3004.3,3003.2,1.53042714]
[1769646054507,0.001,3003.7,3003.2,1.53042714]
[1769646057631,2.73445035,3003.7,3003.3,0.697]
[1769646059954,2.73445035,3003.7,3002.7,0.832584]
[1769646060129,2.73445035,3003.7,3002.8,0.697]
[1769646061171,2.73445035,3003.7,3002.9,4.0]
[1769646061318,2.73445035,3003.7,3002.9,4.697]
[1769646062653,2.73445035,3003.7,3003.0,0.83250083]
[1769646062827,2.73445035,3003.7,3003.1,0.88595042]
[1769646063151,5.6319158,3004.3,3003.1,0.88595042]
[1769646063351,2.6604174,3004.2,3003.1,0.88595042]
[1769646065057,2.6604174,3004.0,3003.2,0.83244539]
[1769646065566,0.05751032,3004.5,3003.2,3.48247885]
[1769646065567,3.48372176,3004.4,3003.2,3.48247885]
[1769646065734,3.48372176,3004.4,3003.3,3.8998309]
[1769646065932,3.48372176,3004.4,3003.4,0.002]
[1769646065933,3.48370898,3004.4,3003.4,0.002]
[1769646066567,2.6604174,3004.3,3003.4,0.002]
[1769646067234,2.6604174,3004.2,3003.4,0.83438995]
[1769646070347,2.6604174,3004.2,3003.4,0.002]
[1769646070963,2.6604174,3004.1,3003.4,0.002]
[1769646073044,2.6604174,3004.4,3003.4,2.65203346]
[1769646073368,2.6604174,3004.4,3003.5,2.91523681]
[1769646074778,2.6604174,3004.4,3003.6,0.83233453]
[1769646075073,3.49253229,3004.4,3003.7,0.697]
[1769646075251,2.6604174,3004.4,3003.7,0.697]
[1769646077071,2.6604174,3004.4,3003.7,1.52928174]
[1769646077277,2.6604174,3004.4,3003.8,0.48586136]
[1769646077775,0.001,3004.5,3003.8,0.48586136]
[1769646078154,2.6614174,3004.5,3003.8,0.48586136]
[1769646079475,2.6614174,3004.5,3003.8,1.31811839]
[1769646085384,0.001,3004.5,3003.9,4.79299419]
[1769646085696,0.001,3004.5,3004.0,0.89362952]
[1769646085987,0.001,3004.5,3003.8,4.14330104]
[1769646086194,2.55566418,3004.5,3003.8,1.31811839]
[1769646086374,2.55466418,3004.4,3003.8,0.48586136]
[1769646086575,2.55466418,3004.4,3003.9,0.697]
[1769646088314,2.55466418,3004.4,3003.9,1.52924798]
[1769646088614,2.73211233,3003.9,3003.4,1.53137329]
[1769646089118,2.73211233,3004.2,3003.4,1.18511235]
[1769646089286,2.73211233,3004.4,3003.5,2.56561751]
[1769646089619,2.73211233,3004.4,3003.8,0.83426361]
[1769646089797,2.73211233,3004.4,3003.9,0.83225025]
[1769646090002,2.73211233,3004.4,3003.8,0.83426839]
[1769646090680,2.73211233,3004.4,3003.8,0.002]
[1769646090915,0.001,3004.5,3003.8,0.002]
[1769646091116,3.56520073,3004.5,3003.8,0.002]
[1769646092111,2.73311233,3004.5,3003.8,0.002]
[1769646092310,0.001,3004.5,3003.8,0.002]
[1769646092617,0.001,3004.5,3003.9,5.62524559]
[1769646092923,6.33,3005.5,3003.9,5.62524559]
[1769646092924,2.73211233,3006.1,3004.7,2.56561751]
[1769646093110,2.73211233,3006.1,3005.1,4.79299419]
[1769646093905,2.73211233,3006.1,3004.9,2.56561751]
[1769646094220,2.73211233,3006.1,3004.8,5.48999419]
[1769646094221,0.83157909,3006.4,3005.1,7.3586117]
[1769646094426,2.73211233,3006.3,3005.1,7.3586117]
[1769646094620,2.73211233,3006.3,3005.3,0.8318637]
[1769646094814,2.73211233,3006.3,3005.3,1.98365672]
[1769646095489,0.001,3006.5,3005.4,2.56561751]
[1769646095692,0.001,3006.5,3005.4,7.3586117]
[1769646096822,0.001,3006.5,3005.5,0.83180835]
[1769646097020,0.001,3006.5,3005.6,3.26261751]
[1769646097321,0.001,3006.5,3005.7,5.20243678]
[1769646097824,0.001,3006.5,3005.7,0.40944259]
[1769646098604,0.001,3006.5,3005.7,2.9750601]
[1769646098791,0.001,3006.5,3005.9,0.83169766]
[1769646099610,0.001,3006.5,3005.9,3.39731517]
[1769646099805,0.001,3006.5,3006.0,0.67241058]
[1769646100004,0.001,3006.5,3006.1,2.56561751]
[1769646100404,0.001,3006.8,3006.1,2.56561751]
[1769646100826,0.001,3006.8,3006.2,3.39723217]
[1769646101213,3.56436907,3007.5,3006.3,2.56561751]
[1769646101406,0.35643691,3007.4,3006.4,0.697]
[1769646101611,0.35643691,3007.4,3006.4,3.26261751]
[1769646102631,3.08854924,3007.4,3006.4,0.697]
[1769646103130,3.5634228,3007.3,3006.4,1.52853444]
[1769646103432,0.72459983,3007.3,3006.4,1.52853444]
[1769646103746,3.08854924,3007.4,3006.4,1.52853444]
[1769646104230,2.73211233,3007.3,3006.4,1.52853444]
[1769646104835,2.73211233,3007.3,3006.4,0.83153444]
[1769646105204,2.73211233,3007.2,3006.5,0.697]
[1769646106329,2.73211233,3007.2,3006.2,0.83159706]
[1769646106535,0.83131054,3007.3,3006.3,5.52857905]
[1769646106536,2.73211233,3007.0,3006.3,5.52857905]
[1769646106831,2.73211233,3007.0,3006.3,1.52857905]
[1769646107200,0.83139539,3007.0,3006.3,0.697]
[1769646107433,2.73211233,3006.9,3006.3,0.697]
[1769646108235,2.73211233,3006.9,3005.9,0.83167832]
[1769646108528,2.73211233,3006.7,3006.0,0.697]
[1769646109035,2.73211233,3006.7,3005.9,4.83167832]
[1769646109332,2.73211233,3006.6,3005.9,4.0]
[1769646109922,2.73211233,3006.6,3005.8,0.83172517]
[1769646110128,2.73211233,3006.4,3005.8,0.83172517]
[1769646110303,2.73211233,3006.4,3005.9,0.83169477]
[1769646110937,2.73211233,3006.4,3005.8,0.83170437]
[1769646111348,2.73211233,3006.4,3005.7,4.02400594]
[1769646111349,2.73211233,3006.3,3005.7,0.697]
[1769646112609,0.001,3006.1,3005.7,0.697]
[1769646112909,2.73211233,3006.3,3005.7,0.697]
[1769646113209,0.35635127,3006.8,3005.8,2.56561751]
[1769646113415,3.56352665,3007.0,3006.0,2.56561751]
[1769646113720,3.56343899,3007.3,3006.0,2.56561751]
[1769646114140,2.73211233,3007.2,3006.0,2.56561751]
[1769646114521,2.73211233,3007.2,3006.0,6.56561751]
[1769646114740,2.73211233,3007.2,3006.1,0.77235769]
[1769646117339,3.56346206,3007.2,3006.2,0.83161466]
[1769646117553,2.77162845,3007.1,3006.2,0.83161466]
[1769646119226,2.77162845,3007.1,3006.3,0.697]
[1769646119430,2.77162845,3007.0,3006.3,1.52856659]
[1769646120256,2.77162845,3007.0,3006.3,2.0913022]
[1769646120716,2.77162845,3007.4,3006.4,2.91032092]
[1769646121562,2.77162845,3007.3,3006.5,0.83153168]
[1769646123653,2.77162845,3007.3,3006.4,3.32613708]
[1769646123954,2.77162845,3007.3,3006.5,0.5417432]
[1769646125534,0.001,3007.1,3006.5,0.5417432]
[1769646125856,0.001,3007.1,3006.6,0.83150402]
[1769646126015,2.77262845,3007.1,3006.4,0.83154312]
[1769646126221,2.77262845,3007.1,3006.5,0.697]
[1769646126616,2.77262845,3007.1,3006.1,4.57435769]
[1769646126617,3.13302338,3007.1,3006.1,4.57435769]
[1769646126952,3.13302338,3007.1,3006.2,0.697]
[1769646127846,2.77162845,3006.9,3006.1,4.63363805]
[1769646128160,2.77162845,3006.9,3006.1,5.33063805]
[1769646128572,2.77162845,3006.9,3006.1,4.499]
[1769646128855,3.13193064,3006.8,3006.1,3.802]
[1769646129855,2.77162845,3006.6,3006.1,3.802]
[1769646130059,2.77162845,3006.6,3006.1,0.002]
[1769646131550,4.78390433,3006.6,3006.1,0.002]
[1769646131741,4.78390433,3006.6,3005.8,0.002]
[1769646131742,2.77162845,3006.5,3005.8,0.002]
[1769646132050,2.77162845,3006.2,3005.8,0.002]
[1769646133188,2.77162845,3006.4,3005.8,0.002]
[1769646133333,3.60315258,3006.6,3005.8,0.002]
[1769646135363,2.77162845,3006.5,3005.8,0.002]
[1769646136375,2.77162845,3006.3,3005.8,0.002]
[1769646136537,2.77162845,3006.2,3005.8,0.002]
[1769646137256,2.77162845,3006.2,3006.1,0.002]
[1769646137842,2.77162845,3006.2,3005.3,0.697]
[1769646138050,2.77162845,3006.2,3004.8,3.32799265]
[1769646138256,2.77162845,3006.0,3005.0,4.83194269]
[1769646138456,2.77162845,3006.0,3005.0,4.0]
[1769646138855,2.77162845,3006.0,3005.0,4.83194277]
[1769646139055,2.77162845,3006.0,3005.1,0.697]
[1769646139653,2.77162845,3006.0,3004.8,3.32799287]
[1769646139853,2.77162845,3005.8,3004.9,0.697]
[1769646140065,2.77162845,3005.8,3005.0,0.83194431]
[1769646140473,0.39975992,3005.9,3005.1,2.91032092]
[1769646140771,3.60327396,3006.1,3005.1,2.91032092]
[1769646141441,2.77162845,3006.0,3005.1,2.91032092]
[1769646142870,2.77162845,3005.8,3004.9,0.8319586]
[1769646143071,2.77162845,3005.6,3005.0,0.83194525]
[1769646143241,2.77162845,3005.6,3005.0,0.83194184]
[1769646144049,2.77162845,3005.6,3005.1,0.83191844]
[1769646144248,3.32672316,3006.0,3005.1,0.83191844]
[1769646144249,2.77162845,3005.8,3005.1,0.83191844]
[1769646144453,2.77162845,3006.6,3005.1,0.83191844]
[1769646144665,2.77162845,3006.4,3005.1,0.83191844]
[1769646145360,2.75236003,3006.2,3005.0,6.31049655]
[1769646145566,2.75236003,3006.2,3005.1,2.98271611]
[1769646145880,0.83156679,3006.4,3005.1,2.98271611]
[1769646146044,3.58390677,3006.5,3005.3,2.98271611]
[1769646147768,3.58390677,3006.5,3005.4,0.83183602]
[1769646148171,3.58390677,3006.5,3005.4,3.81455213]
[1769646148471,2.75236003,3006.5,3005.5,2.88097315]
[1769646148671,2.7869752,3006.5,3005.5,2.88097315]
[1769646148846,2.7869752,3006.5,3005.6,0.37128092]
[1769646149580,0.001,3006.2,3005.6,0.37128092]
[1769646149877,0.001,3006.2,3005.7,0.831753]
[1769646151577,0.001,3006.2,3005.6,1.20304187]
[1769646151887,0.001,3006.2,3005.6,1.52876095]
[1769646153879,0.001,3006.2,3005.7,2.88097315]
[1769646154064,0.001,3006.2,3005.6,1.52876095]
[1769646154065,0.001,3006.2,3005.6,0.83176095]
[1769646154573,0.001,3006.2,3005.7,0.697]
[1769646154768,0.001,3006.2,3005.8,0.83172533]
[1769646154978,0.001,3006.2,3005.9,0.77365998]
[1769646157564,0.001,3006.2,3006.0,0.83166999]
[1769646159358,0.001,3006.2,3005.9,0.77365998]
[1769646159683,0.001,3006.2,3005.9,1.60535424]
[1769646159978,0.001,3006.2,3005.9,1.52868162]
[1769646160385,2.7869752,3006.9,3005.9,9.19638941]
[1769646160586,2.7869752,3006.9,3006.0,2.88097315]
[1769646161386,2.7869752,3006.9,3006.1,0.697]
[1769646161768,2.7869752,3006.8,3006.1,1.52861495]